[Event "Titled Tuesday Blitz July 25 Late 2023"]
[White "Machidon, Cristi"]
[Black "Dimitrov, Atanas"]
[WhiteFideId "13904590"]
[BlackFideId "2901315"]
[WhiteElo "2512"]
[BlackElo "2680"]
[Result "0-1"]
[Round "9"]
[TimeControl "180+2"]
[Date "2023.07.25"]
[WhiteClock "0:00:29"]
[BlackClock "0:01:08"]
[Board "49"]

1. e3 {[%clk 0:02:37]}  d5 {[%clk 0:02:58]} 2. c4 {[%clk 0:02:38]}  c6 {[%clk 0:02:50]} 3. Nf3 {[%clk 0:02:36]}  Nf6 {[%clk 0:02:50]} 4. Nc3 {[%clk 0:02:33]}  g6 {[%clk 0:02:50]} 5. b3 {[%clk 0:02:33]}  Bg7 {[%clk 0:02:50]} 6. Bb2 {[%clk 0:02:34]}  O-O {[%clk 0:02:50]} 7. Be2 {[%clk 0:02:34]}  a5 {[%clk 0:02:49]} 8. O-O {[%clk 0:02:32]}  Na6 {[%clk 0:02:49]} 9. Rc1 {[%clk 0:02:30]}  Bf5 {[%clk 0:02:45]} 10. cxd5 {[%clk 0:02:17]}  cxd5 {[%clk 0:02:41]} 11. d4 {[%clk 0:02:15]}  Ne4 {[%clk 0:02:37]} 12. Nxe4 {[%clk 0:02:11]}  Bxe4 {[%clk 0:02:38]} 13. Ne5 {[%clk 0:02:05]}  Bf5 {[%clk 0:02:33]} 14. Qd2 {[%clk 0:01:58]}  Qb6 {[%clk 0:02:15]} 15. Bc3 {[%clk 0:01:26]}  Nc7 {[%clk 0:02:13]} 16. Nd3 {[%clk 0:01:22]}  Nb5 {[%clk 0:02:10]} 17. Bb2 {[%clk 0:01:22]}  a4 {[%clk 0:01:59]} 18. Qb4 {[%clk 0:01:17]}  axb3 {[%clk 0:01:48]} 19. Qxb3 {[%clk 0:01:13]}  Qa5 {[%clk 0:01:35]} 20. Nc5 {[%clk 0:01:11]}  Nd6 {[%clk 0:01:35]} 21. a4 {[%clk 0:00:46]}  b6 {[%clk 0:01:28]} 22. Bc3 {[%clk 0:00:46]}  Qa7 {[%clk 0:01:27]} 23. Na6 {[%clk 0:00:46]}  Rfc8 {[%clk 0:01:15]} 24. Bb4 {[%clk 0:00:44]}  Nc4 {[%clk 0:01:14]} 25. Rxc4 {[%clk 0:00:30]}  dxc4 {[%clk 0:01:12]} 26. Bxc4 {[%clk 0:00:31]}  Rxc4 {[%clk 0:01:08]} 27. Qxc4 {[%clk 0:00:29]}  Qxa6 {[%clk 0:01:08]} 0-1


[Site "https://www.chess.com"]

[Event "Titled Tuesday Blitz July 25 Late 2023"]
[White "Haydon, David L"]
[Black "Roberson, Peter T"]
[WhiteFideId "415405"]
[BlackFideId "412384"]
[WhiteElo "2632"]
[BlackElo "2501"]
[Result "1-0"]
[Round "9"]
[TimeControl "180+2"]
[Date "2023.07.25"]
[WhiteClock "0:01:08"]
[BlackClock "0:00:00"]
[Board "50"]

1. d4 {[%clk 0:03:00]}  Nf6 {[%clk 0:02:50]} 2. Nc3 {[%clk 0:03:00]}  d5 {[%clk 0:02:44]} 3. Bf4 {[%clk 0:03:00]}  a6 {[%clk 0:02:42]} 4. e3 {[%clk 0:03:00]}  e6 {[%clk 0:02:41]} 5. Bd3 {[%clk 0:02:59]}  c5 {[%clk 0:02:41]} 6. Nf3 {[%clk 0:02:54]}  Nc6 {[%clk 0:02:41]} 7. dxc5 {[%clk 0:02:52]}  Bxc5 {[%clk 0:02:40]} 8. O-O {[%clk 0:02:51]}  O-O {[%clk 0:02:38]} 9. Qd2 {[%clk 0:02:43]}  Bd6 {[%clk 0:02:31]} 10. Bg3 {[%clk 0:02:32]}  e5 {[%clk 0:02:28]} 11. Be2 {[%clk 0:02:30]}  Be6 {[%clk 0:02:27]} 12. Rfd1 {[%clk 0:02:18]}  Qa5 {[%clk 0:02:01]} 13. a3 {[%clk 0:02:10]}  Rad8 {[%clk 0:01:52]} 14. Ng5 {[%clk 0:02:01]}  e4 {[%clk 0:01:28]} 15. Bxd6 {[%clk 0:01:55]}  Rxd6 {[%clk 0:01:26]} 16. Ngxe4 {[%clk 0:01:51]}  Nxe4 {[%clk 0:01:01]} 17. Nxe4 {[%clk 0:01:49]}  Qxd2 {[%clk 0:01:02]} 18. Rxd2 {[%clk 0:01:48]}  Rdd8 {[%clk 0:01:01]} 19. Nc5 {[%clk 0:01:48]}  Bc8 {[%clk 0:00:53]} 20. Rad1 {[%clk 0:01:47]}  Ne7 {[%clk 0:00:53]} 21. c4 {[%clk 0:01:42]}  b6 {[%clk 0:00:54]} 22. Na4 {[%clk 0:01:42]}  Rd6 {[%clk 0:00:49]} 23. cxd5 {[%clk 0:01:39]}  f5 {[%clk 0:00:48]} 24. Nc3 {[%clk 0:01:33]}  Rfd8 {[%clk 0:00:47]} 25. Rd4 {[%clk 0:01:25]}  Bb7 {[%clk 0:00:48]} 26. f3 {[%clk 0:01:23]}  b5 {[%clk 0:00:46]} 27. R1d2 {[%clk 0:01:11]}  Nxd5 {[%clk 0:00:33]} 28. Bd1 {[%clk 0:01:09]}  Nxc3 {[%clk 0:00:03]} 29. Rxd6 {[%clk 0:01:08]}  Rxd6 {[%clk 0:00:01]} 30. Rxd6 {[%clk 0:01:08]}  Nxd1 {[%clk 0:00:01]} 31. Rxd1 {[%clk 0:01:08]}  Bc6 {[%clk 0:00:00]} 32. Rd6 {[%clk 0:01:08]} 1-0


[Site "https://www.chess.com"]

[Event "Titled Tuesday Blitz July 25 Late 2023"]
[White "Tanaka, Taira Tyler"]
[Black "Yeritsyan, Hayk"]
[WhiteFideId "7002351"]
[BlackFideId "13307320"]
[WhiteElo "2624"]
[BlackElo "2486"]
[Result "1-0"]
[Round "9"]
[TimeControl "180+2"]
[Date "2023.07.25"]
[WhiteClock "0:00:22"]
[BlackClock "0:00:03"]
[Board "51"]

1. c4 {[%clk 0:03:00]}  c6 {[%clk 0:02:57]} 2. b3 {[%clk 0:02:59]}  d5 {[%clk 0:02:58]} 3. Bb2 {[%clk 0:02:58]}  Bf5 {[%clk 0:02:57]} 4. e3 {[%clk 0:02:56]}  e6 {[%clk 0:02:57]} 5. Nf3 {[%clk 0:02:56]}  Nf6 {[%clk 0:02:58]} 6. Nc3 {[%clk 0:02:56]}  h6 {[%clk 0:02:58]} 7. h3 {[%clk 0:02:56]}  Be7 {[%clk 0:02:58]} 8. d4 {[%clk 0:02:55]}  Nbd7 {[%clk 0:02:56]} 9. Bd3 {[%clk 0:02:56]}  Bxd3 {[%clk 0:02:56]} 10. Qxd3 {[%clk 0:02:57]}  Bd6 {[%clk 0:02:55]} 11. O-O {[%clk 0:02:54]}  O-O {[%clk 0:02:52]} 12. e4 {[%clk 0:02:54]}  dxc4 {[%clk 0:02:50]} 13. Qxc4 {[%clk 0:02:51]}  e5 {[%clk 0:02:49]} 14. Rad1 {[%clk 0:02:48]}  Qe7 {[%clk 0:02:47]} 15. Rfe1 {[%clk 0:02:47]}  Rfe8 {[%clk 0:02:42]} 16. d5 {[%clk 0:02:46]}  Nb6 {[%clk 0:02:38]} 17. Qd3 {[%clk 0:02:42]}  cxd5 {[%clk 0:02:36]} 18. Nxd5 {[%clk 0:02:43]}  Nbxd5 {[%clk 0:02:03]} 19. exd5 {[%clk 0:02:42]}  Nd7 {[%clk 0:01:53]} 20. Nd4 {[%clk 0:02:29]}  g6 {[%clk 0:01:21]} 21. Nb5 {[%clk 0:02:07]}  a6 {[%clk 0:01:20]} 22. Nxd6 {[%clk 0:02:06]}  Qxd6 {[%clk 0:01:21]} 23. Qe3 {[%clk 0:01:40]}  Kh7 {[%clk 0:01:17]} 24. Bc1 {[%clk 0:01:39]}  g5 {[%clk 0:01:05]} 25. h4 {[%clk 0:01:28]}  f6 {[%clk 0:01:00]} 26. Qe4+ {[%clk 0:01:26]}  Kg7 {[%clk 0:00:55]} 27. h5 {[%clk 0:01:27]}  Nf8 {[%clk 0:00:49]} 28. Bd2 {[%clk 0:01:22]}  a5 {[%clk 0:00:45]} 29. Re3 {[%clk 0:01:17]}  Rad8 {[%clk 0:00:38]} 30. Be1 {[%clk 0:01:18]}  b6 {[%clk 0:00:37]} 31. Rf3 {[%clk 0:01:12]}  Qd7 {[%clk 0:00:32]} 32. Bc3 {[%clk 0:01:06]}  Qf7 {[%clk 0:00:30]} 33. g4 {[%clk 0:01:03]}  Rd7 {[%clk 0:00:26]} 34. a4 {[%clk 0:01:03]}  Red8 {[%clk 0:00:26]} 35. Rfd3 {[%clk 0:00:57]}  Rd6 {[%clk 0:00:22]} 36. Bb2 {[%clk 0:00:57]}  Nd7 {[%clk 0:00:21]} 37. Ba3 {[%clk 0:00:55]}  Nc5 {[%clk 0:00:17]} 38. Bxc5 {[%clk 0:00:55]}  bxc5 {[%clk 0:00:18]} 39. f3 {[%clk 0:00:52]}  Rb8 {[%clk 0:00:16]} 40. Kg2 {[%clk 0:00:52]}  Rb4 {[%clk 0:00:16]} 41. Qe3 {[%clk 0:00:49]}  Qc7 {[%clk 0:00:15]} 42. Rc1 {[%clk 0:00:48]}  Rd4 {[%clk 0:00:14]} 43. Rxd4 {[%clk 0:00:47]}  exd4 {[%clk 0:00:14]} 44. Qe4 {[%clk 0:00:41]}  Qd7 {[%clk 0:00:11]} 45. Rxc5 {[%clk 0:00:40]}  Qf7 {[%clk 0:00:10]} 46. Rxa5 {[%clk 0:00:28]}  Qc7 {[%clk 0:00:06]} 47. Qg6+ {[%clk 0:00:27]}  Kf8 {[%clk 0:00:04]} 48. Ra8+ {[%clk 0:00:24]}  Rd8 {[%clk 0:00:04]} 49. Qxf6+ {[%clk 0:00:25]}  Ke8 {[%clk 0:00:04]} 50. Rxd8+ {[%clk 0:00:20]}  Qxd8 {[%clk 0:00:04]} 51. Qxd8+ {[%clk 0:00:21]}  Kxd8 {[%clk 0:00:03]} 52. Kf2 {[%clk 0:00:22]} 1-0


[Site "https://www.chess.com"]

[Event "Titled Tuesday Blitz July 25 Late 2023"]
[White "Zavgorodniy, Sergiy"]
[Black "MateoReyes"]
[WhiteFideId "14110148"]
[WhiteElo "2601"]
[BlackElo "2477"]
[Result "1-0"]
[Round "9"]
[TimeControl "180+2"]
[Date "2023.07.25"]
[WhiteClock "0:01:06"]
[BlackClock "0:01:49"]
[Board "52"]

1. d4 {[%clk 0:03:00]}  Nf6 {[%clk 0:02:58]} 2. c4 {[%clk 0:03:01]}  g6 {[%clk 0:02:58]} 3. Nc3 {[%clk 0:03:01]}  Bg7 {[%clk 0:02:58]} 4. e4 {[%clk 0:03:01]}  d6 {[%clk 0:02:58]} 5. Be2 {[%clk 0:03:02]}  Nc6 {[%clk 0:02:57]} 6. Nf3 {[%clk 0:03:02]}  O-O {[%clk 0:02:56]} 7. O-O {[%clk 0:03:02]}  e5 {[%clk 0:02:56]} 8. d5 {[%clk 0:03:02]}  Ne7 {[%clk 0:02:55]} 9. Ne1 {[%clk 0:03:03]}  a5 {[%clk 0:02:54]} 10. Be3 {[%clk 0:03:03]}  b6 {[%clk 0:02:53]} 11. a3 {[%clk 0:03:04]}  h5 {[%clk 0:02:53]} 12. f3 {[%clk 0:03:03]}  Kh7 {[%clk 0:02:52]} 13. b4 {[%clk 0:03:03]}  Bh6 {[%clk 0:02:50]} 14. Bxh6 {[%clk 0:03:02]}  Kxh6 {[%clk 0:02:50]} 15. Nd3 {[%clk 0:03:03]}  Kh7 {[%clk 0:02:47]} 16. c5 {[%clk 0:03:03]}  axb4 {[%clk 0:02:45]} 17. axb4 {[%clk 0:03:04]}  bxc5 {[%clk 0:02:43]} 18. Rxa8 {[%clk 0:03:03]}  h4 {[%clk 0:02:41]} 19. bxc5 {[%clk 0:03:02]}  Nh5 {[%clk 0:02:39]} 20. Nb5 {[%clk 0:03:00]}  f5 {[%clk 0:02:37]} 21. Na7 {[%clk 0:02:59]}  Qd7 {[%clk 0:02:32]} 22. c6 {[%clk 0:02:56]}  Qd8 {[%clk 0:02:31]} 23. Qa4 {[%clk 0:02:42]}  Qe8 {[%clk 0:02:29]} 24. Rb1 {[%clk 0:02:29]}  Qf7 {[%clk 0:02:28]} 25. Rbb8 {[%clk 0:02:29]}  fxe4 {[%clk 0:02:25]} 26. Qxe4 {[%clk 0:02:15]}  Nf6 {[%clk 0:02:15]} 27. Qxh4+ {[%clk 0:02:14]}  Kg7 {[%clk 0:02:15]} 28. Nxc8 {[%clk 0:02:14]}  Rh8 {[%clk 0:02:14]} 29. Qf2 {[%clk 0:02:09]}  e4 {[%clk 0:02:13]} 30. Nxe7 {[%clk 0:02:07]}  Rxb8 {[%clk 0:02:10]} 31. Rxb8 {[%clk 0:02:07]}  exd3 {[%clk 0:02:10]} 32. Bxd3 {[%clk 0:02:00]}  Qxe7 {[%clk 0:02:10]} 33. Be4 {[%clk 0:01:53]}  Qe5 {[%clk 0:02:09]} 34. Qb2 {[%clk 0:01:48]}  Qf4 {[%clk 0:02:08]} 35. Rb3 {[%clk 0:01:45]}  Kh6 {[%clk 0:02:05]} 36. g3 {[%clk 0:01:43]}  Qg5 {[%clk 0:02:01]} 37. f4 {[%clk 0:01:34]}  Qg4 {[%clk 0:02:01]} 38. Qxf6 {[%clk 0:01:15]}  Qd1+ {[%clk 0:01:59]} 39. Kg2 {[%clk 0:01:12]}  Qe2+ {[%clk 0:01:58]} 40. Kh3 {[%clk 0:01:11]}  Qf1+ {[%clk 0:01:54]} 41. Bg2 {[%clk 0:01:07]}  Qe1 {[%clk 0:01:49]} 42. Qh8# {[%clk 0:01:06]} 1-0


[Site "https://www.chess.com"]

[Event "Titled Tuesday Blitz July 25 Late 2023"]
[White "Medina Paz, Miguel"]
[Black "ExchangeAB"]
[WhiteFideId "7300379"]
[WhiteElo "2583"]
[BlackElo "2461"]
[Result "1-0"]
[Round "9"]
[TimeControl "180+2"]
[Date "2023.07.25"]
[WhiteClock "0:02:04"]
[BlackClock "0:00:20"]
[Board "53"]

1. e4 {[%clk 0:03:00]}  c6 {[%clk 0:03:00]} 2. d4 {[%clk 0:03:00]}  d5 {[%clk 0:03:01]} 3. exd5 {[%clk 0:03:00]}  cxd5 {[%clk 0:03:01]} 4. Nf3 {[%clk 0:03:01]}  Nf6 {[%clk 0:03:01]} 5. Nbd2 {[%clk 0:03:01]}  Nc6 {[%clk 0:03:01]} 6. Bb5 {[%clk 0:03:02]}  Bd7 {[%clk 0:02:48]} 7. O-O {[%clk 0:03:01]}  Rc8 {[%clk 0:02:45]} 8. c3 {[%clk 0:03:00]}  a6 {[%clk 0:02:44]} 9. Bd3 {[%clk 0:03:00]}  Bg4 {[%clk 0:02:43]} 10. a4 {[%clk 0:02:59]}  e6 {[%clk 0:02:43]} 11. Qb3 {[%clk 0:02:59]}  Na5 {[%clk 0:02:37]} 12. Qa2 {[%clk 0:02:59]}  Bxf3 {[%clk 0:02:36]} 13. Nxf3 {[%clk 0:02:58]}  Be7 {[%clk 0:02:35]} 14. Re1 {[%clk 0:02:53]}  O-O {[%clk 0:02:35]} 15. Bf4 {[%clk 0:02:51]}  Nc4 {[%clk 0:02:30]} 16. Re2 {[%clk 0:02:48]}  h6 {[%clk 0:02:24]} 17. a5 {[%clk 0:02:45]}  Bd6 {[%clk 0:02:23]} 18. Bxc4 {[%clk 0:02:41]}  Bxf4 {[%clk 0:02:13]} 19. Bd3 {[%clk 0:02:41]}  Bd6 {[%clk 0:02:07]} 20. g3 {[%clk 0:02:38]}  Re8 {[%clk 0:01:51]} 21. Kg2 {[%clk 0:02:37]}  Bf8 {[%clk 0:01:47]} 22. Rae1 {[%clk 0:02:34]}  Re7 {[%clk 0:01:46]} 23. Ne5 {[%clk 0:02:33]}  Nd7 {[%clk 0:01:44]} 24. f4 {[%clk 0:02:30]}  Nxe5 {[%clk 0:01:31]} 25. fxe5 {[%clk 0:02:30]}  Re8 {[%clk 0:01:24]} 26. Rf1 {[%clk 0:02:29]}  Rc7 {[%clk 0:01:11]} 27. Ref2 {[%clk 0:02:29]}  Qb8 {[%clk 0:01:06]} 28. Bb1 {[%clk 0:02:28]}  b5 {[%clk 0:01:01]} 29. axb6 {[%clk 0:02:19]}  Qxb6 {[%clk 0:01:01]} 30. Qa4 {[%clk 0:02:20]}  Ree7 {[%clk 0:00:56]} 31. Qc2 {[%clk 0:02:19]}  g6 {[%clk 0:00:56]} 32. h4 {[%clk 0:02:15]}  h5 {[%clk 0:00:55]} 33. g4 {[%clk 0:02:15]}  Bg7 {[%clk 0:00:39]} 34. gxh5 {[%clk 0:02:14]}  gxh5 {[%clk 0:00:39]} 35. Qe2 {[%clk 0:02:12]}  a5 {[%clk 0:00:29]} 36. Qxh5 {[%clk 0:02:11]}  a4 {[%clk 0:00:30]} 37. Qh7+ {[%clk 0:02:04]}  Kf8 {[%clk 0:00:30]} 38. h5 {[%clk 0:02:04]}  a3 {[%clk 0:00:20]} 39. h6 {[%clk 0:02:05]}  Bxh6 {[%clk 0:00:20]} 40. Qh8# {[%clk 0:02:04]} 1-0


[Site "https://www.chess.com"]

[Event "Titled Tuesday Blitz July 25 Late 2023"]
[White "Sargsyan, Anna M."]
[Black "Rangel, Daniel"]
[WhiteFideId "13308130"]
[BlackFideId "2124475"]
[WhiteElo "2576"]
[BlackElo "2454"]
[Result "0-1"]
[Round "9"]
[TimeControl "180+2"]
[Date "2023.07.25"]
[WhiteClock "0:00:29"]
[BlackClock "0:00:07"]
[Board "55"]

1. d4 {[%clk 0:03:00]}  Nf6 {[%clk 0:02:59]} 2. c4 {[%clk 0:03:00]}  e6 {[%clk 0:03:00]} 3. Nf3 {[%clk 0:03:00]}  d5 {[%clk 0:03:00]} 4. Nc3 {[%clk 0:02:59]}  Be7 {[%clk 0:03:01]} 5. Bf4 {[%clk 0:03:00]}  O-O {[%clk 0:02:59]} 6. e3 {[%clk 0:03:00]}  a6 {[%clk 0:02:59]} 7. h3 {[%clk 0:02:58]}  Nbd7 {[%clk 0:02:56]} 8. Rc1 {[%clk 0:02:58]}  Re8 {[%clk 0:02:53]} 9. c5 {[%clk 0:02:55]}  Ne4 {[%clk 0:02:38]} 10. Nxe4 {[%clk 0:02:54]}  dxe4 {[%clk 0:02:39]} 11. Nd2 {[%clk 0:02:54]}  f5 {[%clk 0:02:36]} 12. Bc4 {[%clk 0:02:54]}  Nf6 {[%clk 0:02:36]} 13. O-O {[%clk 0:02:54]}  Nd5 {[%clk 0:02:34]} 14. Bh2 {[%clk 0:02:51]}  c6 {[%clk 0:02:32]} 15. Qe2 {[%clk 0:02:52]}  Rf8 {[%clk 0:02:20]} 16. f3 {[%clk 0:02:51]}  Bg5 {[%clk 0:02:09]} 17. fxe4 {[%clk 0:02:26]}  Nxe3 {[%clk 0:02:05]} 18. Rf2 {[%clk 0:02:10]}  Nxc4 {[%clk 0:01:35]} 19. Rxc4 {[%clk 0:02:11]}  Bxd2 {[%clk 0:01:25]} 20. Qxd2 {[%clk 0:02:12]}  fxe4 {[%clk 0:01:25]} 21. Bd6 {[%clk 0:02:10]}  Rxf2 {[%clk 0:01:23]} 22. Qxf2 {[%clk 0:02:11]}  Bd7 {[%clk 0:01:16]} 23. Rc1 {[%clk 0:02:10]}  Qf6 {[%clk 0:01:14]} 24. Qe3 {[%clk 0:02:07]}  Qg6 {[%clk 0:01:00]} 25. Rf1 {[%clk 0:02:07]}  h6 {[%clk 0:01:00]} 26. Rf4 {[%clk 0:02:06]}  e5 {[%clk 0:00:55]} 27. Bxe5 {[%clk 0:02:00]}  Be6 {[%clk 0:00:51]} 28. Rxe4 {[%clk 0:01:58]}  h5 {[%clk 0:00:37]} 29. Rf4 {[%clk 0:01:52]}  Rf8 {[%clk 0:00:22]} 30. a3 {[%clk 0:01:47]}  Rxf4 {[%clk 0:00:20]} 31. Qxf4 {[%clk 0:01:48]}  Bd5 {[%clk 0:00:20]} 32. Qf2 {[%clk 0:01:47]}  Kh7 {[%clk 0:00:18]} 33. Kh2 {[%clk 0:01:47]}  Qe4 {[%clk 0:00:18]} 34. Qg3 {[%clk 0:01:43]}  Qg6 {[%clk 0:00:17]} 35. Qf2 {[%clk 0:01:41]}  Qe4 {[%clk 0:00:17]} 36. b4 {[%clk 0:01:37]}  Qg6 {[%clk 0:00:17]} 37. Qe2 {[%clk 0:01:34]}  Kg8 {[%clk 0:00:14]} 38. Qd2 {[%clk 0:01:25]}  Kh7 {[%clk 0:00:14]} 39. a4 {[%clk 0:01:23]}  Kg8 {[%clk 0:00:10]} 40. Qb2 {[%clk 0:01:13]}  Kh7 {[%clk 0:00:10]} 41. Bg3 {[%clk 0:01:12]}  Kg8 {[%clk 0:00:09]} 42. h4 {[%clk 0:01:01]}  Kh7 {[%clk 0:00:09]} 43. b5 {[%clk 0:01:02]}  axb5 {[%clk 0:00:08]} 44. axb5 {[%clk 0:01:03]}  Kg8 {[%clk 0:00:08]} 45. b6 {[%clk 0:00:42]}  Qe4 {[%clk 0:00:08]} 46. Qd2 {[%clk 0:00:40]}  Kh7 {[%clk 0:00:08]} 47. Qf2 {[%clk 0:00:37]}  Kg8 {[%clk 0:00:08]} 48. Be5 {[%clk 0:00:32]}  Kh7 {[%clk 0:00:08]} 49. Qf4 {[%clk 0:00:29]}  Qxg2# {[%clk 0:00:07]} 0-1


[Site "https://www.chess.com"]

[Event "Titled Tuesday Blitz July 25 Late 2023"]
[White "SergioMoralesG"]
[Black "Gireman, Ja"]
[BlackFideId "5043794"]
[WhiteElo "2457"]
[BlackElo "2575"]
[Result "0-1"]
[Round "9"]
[TimeControl "180+2"]
[Date "2023.07.25"]
[WhiteClock "0:00:00"]
[BlackClock "0:01:19"]
[Board "56"]

1. d4 {[%clk 0:03:00]}  Nf6 {[%clk 0:02:59]} 2. c4 {[%clk 0:03:00]}  g6 {[%clk 0:02:59]} 3. Nc3 {[%clk 0:03:00]}  d5 {[%clk 0:03:00]} 4. Nf3 {[%clk 0:02:57]}  Bg7 {[%clk 0:03:00]} 5. e3 {[%clk 0:02:56]}  O-O {[%clk 0:02:59]} 6. Be2 {[%clk 0:02:56]}  c5 {[%clk 0:02:58]} 7. O-O {[%clk 0:02:45]}  dxc4 {[%clk 0:02:56]} 8. Bxc4 {[%clk 0:02:44]}  Nc6 {[%clk 0:02:56]} 9. d5 {[%clk 0:02:31]}  Na5 {[%clk 0:02:55]} 10. Be2 {[%clk 0:02:28]}  a6 {[%clk 0:02:42]} 11. e4 {[%clk 0:02:21]}  b5 {[%clk 0:02:42]} 12. e5 {[%clk 0:02:17]}  Nd7 {[%clk 0:02:38]} 13. Bf4 {[%clk 0:02:14]}  Bb7 {[%clk 0:02:37]} 14. Qd2 {[%clk 0:02:10]}  Nb6 {[%clk 0:02:35]} 15. Rfd1 {[%clk 0:01:49]}  b4 {[%clk 0:02:34]} 16. Ne4 {[%clk 0:01:45]}  Qxd5 {[%clk 0:02:34]} 17. Qxd5 {[%clk 0:01:22]}  Nxd5 {[%clk 0:02:35]} 18. Bg3 {[%clk 0:01:22]}  Rac8 {[%clk 0:02:27]} 19. Rac1 {[%clk 0:00:31]}  c4 {[%clk 0:02:17]} 20. Rd4 {[%clk 0:00:17]}  f5 {[%clk 0:02:14]} 21. Neg5 {[%clk 0:00:13]}  c3 {[%clk 0:01:59]} 22. bxc3 {[%clk 0:00:12]}  Nxc3 {[%clk 0:01:59]} 23. Re1 {[%clk 0:00:07]}  Nxe2+ {[%clk 0:01:41]} 24. Rxe2 {[%clk 0:00:08]}  Rc4 {[%clk 0:01:41]} 25. Rd7 {[%clk 0:00:07]}  Bxf3 {[%clk 0:01:31]} 26. gxf3 {[%clk 0:00:07]}  Nc6 {[%clk 0:01:26]} 27. Ne6 {[%clk 0:00:06]}  Rc8 {[%clk 0:01:26]} 28. Nxg7 {[%clk 0:00:05]}  Kxg7 {[%clk 0:01:27]} 29. f4 {[%clk 0:00:04]}  Kf7 {[%clk 0:01:26]} 30. e6+ {[%clk 0:00:03]}  Ke8 {[%clk 0:01:26]} 31. Bh4 {[%clk 0:00:01]}  Rxf4 {[%clk 0:01:23]} 32. Bg3 {[%clk 0:00:01]}  Rd4 {[%clk 0:01:23]} 33. Rc2 {[%clk 0:00:01]}  Rxd7 {[%clk 0:01:22]} 34. exd7+ {[%clk 0:00:01]}  Kxd7 {[%clk 0:01:23]} 35. Rc4 {[%clk 0:00:00]}  e5 {[%clk 0:01:19]} 0-1


[Site "https://www.chess.com"]

[Event "Titled Tuesday Blitz July 25 Late 2023"]
[White "Mekhitarian, Krikor Sevag"]
[Black "Dinu, Dumitru-Daniel"]
[WhiteFideId "2107660"]
[BlackFideId "1208403"]
[WhiteElo "2741"]
[BlackElo "2464"]
[Result "1-0"]
[Round "9"]
[TimeControl "180+2"]
[Date "2023.07.25"]
[WhiteClock "0:01:34"]
[BlackClock "0:00:08"]
[Board "61"]

1. Nf3 {[%clk 0:03:00]}  d5 {[%clk 0:02:59]} 2. c4 {[%clk 0:03:01]}  d4 {[%clk 0:02:58]} 3. b4 {[%clk 0:03:01]}  f6 {[%clk 0:02:54]} 4. Na3 {[%clk 0:03:01]}  e5 {[%clk 0:02:53]} 5. Nc2 {[%clk 0:03:01]}  Be6 {[%clk 0:02:49]} 6. d3 {[%clk 0:03:02]}  a5 {[%clk 0:02:48]} 7. b5 {[%clk 0:03:01]}  Nd7 {[%clk 0:02:48]} 8. g3 {[%clk 0:03:01]}  Bd6 {[%clk 0:02:46]} 9. Bg2 {[%clk 0:03:01]}  Ne7 {[%clk 0:02:45]} 10. O-O {[%clk 0:03:01]}  O-O {[%clk 0:02:45]} 11. Nd2 {[%clk 0:03:02]}  Nc5 {[%clk 0:02:43]} 12. Ba3 {[%clk 0:03:03]}  Rb8 {[%clk 0:02:41]} 13. Bxc5 {[%clk 0:03:01]}  Bxc5 {[%clk 0:02:42]} 14. a4 {[%clk 0:02:59]}  b6 {[%clk 0:02:40]} 15. Ne4 {[%clk 0:02:57]}  Bd6 {[%clk 0:02:29]} 16. Qd2 {[%clk 0:02:57]}  Bf5 {[%clk 0:02:23]} 17. c5 {[%clk 0:02:51]}  bxc5 {[%clk 0:02:15]} 18. Qxa5 {[%clk 0:02:50]}  c6 {[%clk 0:01:54]} 19. Qxd8 {[%clk 0:02:41]}  Rfxd8 {[%clk 0:01:55]} 20. Na3 {[%clk 0:02:41]}  Bxe4 {[%clk 0:01:33]} 21. Bxe4 {[%clk 0:02:41]}  Nd5 {[%clk 0:01:30]} 22. Nc4 {[%clk 0:02:31]}  Bc7 {[%clk 0:01:06]} 23. Rab1 {[%clk 0:02:27]}  Nc3 {[%clk 0:00:56]} 24. Bxc6 {[%clk 0:02:27]}  Nxa4 {[%clk 0:00:51]} 25. Rb3 {[%clk 0:02:24]}  Nb6 {[%clk 0:00:51]} 26. Nd2 {[%clk 0:02:20]}  Kf7 {[%clk 0:00:35]} 27. Rc1 {[%clk 0:02:20]}  Bd6 {[%clk 0:00:32]} 28. Ne4 {[%clk 0:02:21]}  Ke7 {[%clk 0:00:30]} 29. Nxc5 {[%clk 0:02:21]}  Bxc5 {[%clk 0:00:21]} 30. Rxc5 {[%clk 0:02:22]}  Kd6 {[%clk 0:00:20]} 31. Rc1 {[%clk 0:02:22]}  Rdc8 {[%clk 0:00:20]} 32. Ra1 {[%clk 0:02:22]}  Rc7 {[%clk 0:00:20]} 33. Rba3 {[%clk 0:02:22]}  Nd5 {[%clk 0:00:18]} 34. Ra7 {[%clk 0:02:17]}  Rxa7 {[%clk 0:00:11]} 35. Rxa7 {[%clk 0:02:16]}  Nc7 {[%clk 0:00:11]} 36. Kg2 {[%clk 0:02:14]}  g6 {[%clk 0:00:09]} 37. h4 {[%clk 0:02:14]}  h5 {[%clk 0:00:09]} 38. Kf3 {[%clk 0:02:14]}  f5 {[%clk 0:00:09]} 39. Ra1 {[%clk 0:02:05]}  Rb6 {[%clk 0:00:07]} 40. Ra5 {[%clk 0:01:59]}  Rb8 {[%clk 0:00:06]} 41. e3 {[%clk 0:01:56]}  dxe3 {[%clk 0:00:06]} 42. fxe3 {[%clk 0:01:56]}  Rb6 {[%clk 0:00:06]} 43. d4 {[%clk 0:01:51]}  exd4 {[%clk 0:00:06]} 44. exd4 {[%clk 0:01:52]}  Ne6 {[%clk 0:00:05]} 45. Ke3 {[%clk 0:01:52]}  Nc7 {[%clk 0:00:04]} 46. Kd3 {[%clk 0:01:51]}  Nd5 {[%clk 0:00:04]} 47. Ra4 {[%clk 0:01:41]}  Nc7 {[%clk 0:00:03]} 48. Kc4 {[%clk 0:01:40]}  Ne6 {[%clk 0:00:03]} 49. Ra7 {[%clk 0:01:40]}  Nc7 {[%clk 0:00:03]} 50. Ra1 {[%clk 0:01:38]}  Rb8 {[%clk 0:00:03]} 51. Re1 {[%clk 0:01:37]}  Ne6 {[%clk 0:00:03]} 52. Re5 {[%clk 0:01:34]}  Rd8 {[%clk 0:00:02]} 53. Rd5+ {[%clk 0:01:34]}  Kc7 {[%clk 0:00:02]} 54. Rxd8 {[%clk 0:01:34]}  Nxd8 {[%clk 0:00:03]} 55. Be8 {[%clk 0:01:34]}  Kd6 {[%clk 0:00:02]} 56. Bxg6 {[%clk 0:01:34]}  Ke6 {[%clk 0:00:02]} 57. Bxh5 {[%clk 0:01:35]}  Kf6 {[%clk 0:00:03]} 58. Bf3 {[%clk 0:01:35]}  Ne6 {[%clk 0:00:04]} 59. Bd5 {[%clk 0:01:35]}  Ng7 {[%clk 0:00:05]} 60. b6 {[%clk 0:01:34]}  Ne8 {[%clk 0:00:06]} 61. Kc5 {[%clk 0:01:33]}  Nd6 {[%clk 0:00:07]} 62. Kxd6 {[%clk 0:01:34]}  f4 {[%clk 0:00:07]} 63. gxf4 {[%clk 0:01:34]}  Kf5 {[%clk 0:00:07]} 64. b7 {[%clk 0:01:34]}  Kxf4 {[%clk 0:00:08]} 1-0


[Site "https://www.chess.com"]